bitfinex-derivatives/quotes_SOLF0:USTF0_20230902
["timestamp","ask_amount","ask_price","bid_price","bid_amount"]
[1693696274968,15.4,19.489,19.462,274.34088096]
[1693696275165,0.45454546,19.488,19.462,274.34088096]
[1693696275366,500.0,19.492,19.462,274.34088096]
[1693696275367,15.4,19.489,19.462,274.34088096]
[1693696275575,0.45454546,19.488,19.462,274.34088096]
[1693696275774,15.4,19.486,19.462,274.34088096]
[1693696276075,15.4,19.484,19.462,274.34088096]
[1693696276274,0.45454546,19.483,19.462,274.34088096]
[1693696276573,15.4,19.489,19.462,274.34088096]
[1693696276768,0.45454546,19.488,19.462,274.34088096]
[1693696276966,500.0,19.492,19.462,274.34088096]
[1693696276967,15.4,19.489,19.462,274.34088096]
[1693696277171,0.45454546,19.488,19.462,274.34088096]
[1693696277374,15.4,19.489,19.462,274.34088096]
[1693696277673,0.45454546,19.488,19.462,274.34088096]
[1693696277877,15.4,19.486,19.462,274.34088096]
[1693696278067,15.4,19.484,19.462,274.34088096]
[1693696278267,0.45454546,19.483,19.462,274.34088096]
[1693696278469,15.4,19.481,19.462,274.34088096]
[1693696278672,0.45454546,19.481,19.462,274.34088096]
[1693696278876,15.4,19.489,19.462,274.34088096]
[1693696279076,0.45454546,19.488,19.462,274.34088096]
[1693696279375,15.4,19.486,19.462,274.34088096]
[1693696279568,15.4,19.484,19.462,274.34088096]
[1693696279767,0.45454546,19.483,19.462,274.34088096]
[1693696279968,15.4,19.489,19.462,274.34088096]
[1693696280175,0.45454546,19.488,19.462,274.34088096]
[1693696280374,15.4,19.486,19.462,274.34088096]
[1693696280574,15.4,19.484,19.462,274.34088096]
[1693696280775,0.45454546,19.483,19.462,274.34088096]
[1693696280974,15.4,19.481,19.462,274.34088096]
[1693696281174,0.45454546,19.489,19.462,274.34088096]
[1693696281370,15.4,19.489,19.462,274.34088096]
[1693696281572,500.0,19.492,19.462,274.34088096]
[1693696281573,0.45454546,19.488,19.462,274.34088096]
[1693696281774,15.4,19.489,19.462,274.34088096]
[1693696281976,0.45454546,19.488,19.462,274.34088096]
[1693696282171,15.4,19.489,19.462,274.34088096]
[1693696282379,0.45454546,19.488,19.462,274.34088096]
[1693696282580,15.4,19.489,19.462,274.34088096]
[1693696282879,0.45454546,19.488,19.462,274.34088096]
[1693696283080,15.4,19.486,19.462,274.34088096]
[1693696283378,15.4,19.484,19.462,274.34088096]
[1693696283579,0.45454546,19.483,19.462,274.34088096]
[1693696283877,15.4,19.481,19.462,274.34088096]
[1693696284077,0.45454546,19.481,19.462,274.34088096]
[1693696284280,15.4,19.489,19.462,274.34088096]
[1693696284479,0.45454546,19.488,19.462,274.34088096]
[1693696284681,15.4,19.489,19.462,274.34088096]
[1693696284879,0.45454546,19.488,19.462,274.34088096]
[1693696285079,15.4,19.491,19.462,274.34088096]
[1693696285278,15.4,19.489,19.462,274.34088096]
[1693696285577,0.45454546,19.488,19.462,274.34088096]
[1693696285783,15.4,19.491,19.462,274.34088096]
[1693696285983,15.4,19.489,19.462,274.34088096]
[1693696286281,0.45454546,19.488,19.462,274.34088096]
[1693696286580,15.4,19.491,19.462,274.34088096]
[1693696286777,15.4,19.489,19.462,274.34088096]
[1693696286978,9.88781798,19.49,19.462,274.34088096]
[1693696286979,0.45454546,19.488,19.462,274.34088096]
[1693696287179,15.4,19.491,19.462,274.34088096]
[1693696287380,15.4,19.489,19.462,274.34088096]
[1693696287580,0.45454546,19.488,19.462,274.34088096]
[1693696287884,35.3613,19.493,19.462,274.34088096]
[1693696287885,15.4,19.486,19.462,274.34088096]
[1693696288082,15.4,19.484,19.462,274.34088096]
[1693696288278,0.45454546,19.483,19.462,274.34088096]
[1693696288578,15.4,19.481,19.462,274.34088096]
[1693696288782,0.45454546,19.491,19.462,274.34088096]
[1693696288983,15.4,19.491,19.462,274.34088096]
[1693696289185,15.4,19.489,19.462,274.34088096]
[1693696289382,0.45454546,19.488,19.462,274.34088096]
[1693696289683,15.4,19.491,19.462,274.34088096]
[1693696289883,15.4,19.489,19.462,274.34088096]
[1693696290084,0.45454546,19.488,19.462,274.34088096]
[1693696290384,15.4,19.486,19.462,274.34088096]
[1693696290683,15.4,19.484,19.462,274.34088096]
[1693696290879,0.45454546,19.483,19.462,274.34088096]
[1693696291079,15.4,19.491,19.462,274.34088096]
[1693696291375,15.4,19.489,19.462,274.34088096]
[1693696291679,0.45454546,19.488,19.462,274.34088096]
[1693696291879,15.4,19.491,19.462,274.34088096]
[1693696292080,15.4,19.489,19.462,274.34088096]
[1693696292278,0.45454546,19.488,19.462,274.34088096]
[1693696292485,15.4,19.491,19.462,274.34088096]
[1693696292685,15.4,19.489,19.462,274.34088096]
[1693696292885,0.45454546,19.488,19.462,274.34088096]
[1693696293081,15.4,19.491,19.462,274.34088096]
[1693696293281,15.4,19.489,19.462,274.34088096]
[1693696293579,0.45454546,19.488,19.462,274.34088096]
[1693696293884,15.4,19.491,19.462,274.34088096]
[1693696294086,15.4,19.489,19.462,274.34088096]
[1693696294285,0.45454546,19.488,19.462,274.34088096]
[1693696294482,15.4,19.491,19.462,274.34088096]
[1693696294679,15.4,19.489,19.462,274.34088096]
[1693696294882,0.45454546,19.488,19.462,274.34088096]
[1693696295075,15.4,19.491,19.462,274.34088096]
[1693696295279,15.4,19.489,19.462,274.34088096]
[1693696295479,0.45454546,19.488,19.462,274.34088096]
[1693696295687,15.4,19.491,19.463,6.73209881]
[1693696295882,15.4,19.489,19.462,274.34088096]
[1693696296078,0.45454546,19.488,19.462,274.34088096]
[1693696296290,15.4,19.491,19.462,274.34088096]
[1693696296581,15.4,19.489,19.462,274.34088096]
[1693696296884,0.45454546,19.488,19.462,274.34088096]
[1693696297185,15.4,19.491,19.462,274.34088096]
[1693696297386,15.4,19.489,19.462,274.34088096]
[1693696297582,0.45454546,19.488,19.462,274.34088096]
[1693696297887,15.4,19.491,19.462,274.34088096]
[1693696298086,15.4,19.489,19.462,274.34088096]
[1693696298286,0.45454546,19.488,19.462,274.34088096]
[1693696298486,15.4,19.491,19.462,274.34088096]
[1693696298684,15.4,19.489,19.462,274.34088096]
[1693696298887,0.45454546,19.488,19.462,274.34088096]
[1693696299186,15.4,19.491,19.462,274.34088096]
[1693696299382,15.4,19.489,19.462,274.34088096]
[1693696299584,0.45454546,19.488,19.462,274.34088096]
[1693696299785,15.4,19.486,19.462,274.34088096]
[1693696299986,15.4,19.484,19.462,274.34088096]
[1693696300183,0.45454546,19.483,19.462,274.34088096]
[1693696300383,15.4,19.491,19.462,274.34088096]
[1693696300682,15.4,19.489,19.462,274.34088096]
[1693696300878,9.88775402,19.49,19.462,274.34088096]
[1693696300879,0.45454546,19.488,19.462,274.34088096]
[1693696301087,15.4,19.486,19.462,274.34088096]
[1693696301285,15.4,19.484,19.462,274.34088096]
[1693696301581,0.45454546,19.483,19.462,274.34088096]
[1693696301784,15.4,19.491,19.462,274.34088096]
[1693696301986,15.4,19.489,19.462,274.34088096]
[1693696302187,0.45454546,19.488,19.462,274.34088096]
[1693696302386,15.4,19.491,19.462,274.34088096]
[1693696302585,15.4,19.489,19.462,274.34088096]
[1693696302880,0.45454546,19.488,19.462,274.34088096]
[1693696303084,15.4,19.491,19.462,274.34088096]
[1693696303284,15.4,19.489,19.462,274.34088096]
[1693696303484,0.45454546,19.488,19.462,274.34088096]
[1693696303685,15.4,19.491,19.462,274.34088096]
[1693696303885,15.4,19.489,19.462,274.34088096]
[1693696304090,0.45454546,19.488,19.462,274.34088096]
[1693696304289,15.4,19.486,19.462,274.34088096]
[1693696304486,15.4,19.484,19.462,274.34088096]
[1693696304690,0.45454546,19.483,19.462,274.34088096]
[1693696304988,15.4,19.481,19.462,274.34088096]
[1693696305187,0.45454546,19.491,19.462,274.34088096]
[1693696305387,15.4,19.491,19.462,274.34088096]
[1693696305588,15.4,19.489,19.462,274.34088096]
[1693696305788,0.45454546,19.488,19.462,274.34088096]
[1693696305990,15.4,19.486,19.462,274.34088096]
[1693696306190,15.4,19.484,19.462,274.34088096]
[1693696306391,0.45454546,19.483,19.462,274.34088096]
[1693696306586,15.4,19.491,19.462,274.34088096]
[1693696306788,15.4,19.489,19.462,274.34088096]
[1693696306989,0.45454546,19.488,19.462,274.34088096]
[1693696307288,15.4,19.486,19.462,274.34088096]
[1693696307490,15.4,19.484,19.462,274.34088096]
[1693696307690,0.45454546,19.485,19.462,274.34088096]
[1693696307691,0.45454546,19.483,19.462,274.34088096]
[1693696307895,15.4,19.491,19.462,274.34088096]
[1693696308088,15.4,19.489,19.462,274.34088096]
[1693696308284,0.45454546,19.488,19.462,274.34088096]
[1693696308590,15.4,19.491,19.462,274.34088096]
[1693696308782,15.4,19.489,19.462,274.34088096]
[1693696308983,0.45454546,19.488,19.462,274.34088096]
[1693696309184,15.4,19.486,19.462,274.34088096]
[1693696309383,15.4,19.484,19.462,274.34088096]
[1693696309582,0.45454546,19.483,19.462,274.34088096]
[1693696309795,15.4,19.481,19.462,274.34088096]
[1693696309986,0.45454546,19.491,19.462,274.34088096]
[1693696310192,15.4,19.489,19.462,274.34088096]
[1693696310393,0.45454546,19.488,19.462,274.34088096]
[1693696310593,15.4,19.491,19.462,274.34088096]
[1693696310896,15.4,19.489,19.462,274.34088096]
[1693696311086,0.45454546,19.488,19.462,274.34088096]
[1693696311396,15.4,19.486,19.462,274.34088096]
[1693696311591,15.4,19.484,19.462,274.34088096]
[1693696311791,0.45454546,19.483,19.462,274.34088096]
[1693696311992,15.4,19.491,19.462,274.34088096]
[1693696312294,15.4,19.489,19.462,274.34088096]
[1693696312497,0.45454546,19.488,19.462,274.34088096]
[1693696312697,15.4,19.491,19.462,274.34088096]
[1693696312997,15.4,19.489,19.462,274.34088096]
[1693696313194,0.45454546,19.488,19.462,274.34088096]
[1693696313392,15.4,19.491,19.462,274.34088096]
[1693696313593,15.4,19.489,19.462,274.34088096]
[1693696313793,0.45454546,19.488,19.462,274.34088096]
[1693696314097,15.4,19.486,19.462,274.34088096]
[1693696314298,15.4,19.484,19.462,274.34088096]
[1693696314498,0.45454546,19.483,19.462,274.34088096]
[1693696314797,15.4,19.491,19.462,274.34088096]
[1693696314997,15.4,19.489,19.462,274.34088096]
[1693696315198,0.45454546,19.488,19.462,274.34088096]
[1693696315392,15.4,19.491,19.462,274.34088096]
[1693696315594,15.4,19.489,19.462,274.34088096]
[1693696315894,0.45454546,19.488,19.462,274.34088096]
[1693696316093,15.4,19.491,19.462,274.34088096]
[1693696316293,15.4,19.489,19.462,274.34088096]
[1693696316495,0.45454546,19.488,19.462,274.34088096]
[1693696316694,15.4,19.486,19.462,274.34088096]
[1693696316895,15.4,19.484,19.462,274.34088096]
[1693696317095,0.45454546,19.483,19.462,274.34088096]
[1693696317300,15.4,19.491,19.462,274.34088096]
[1693696317495,15.4,19.489,19.462,274.34088096]
[1693696317799,0.45454546,19.488,19.462,274.34088096]
[1693696317999,15.4,19.486,19.462,274.34088096]
[1693696318198,15.4,19.484,19.462,274.34088096]
[1693696318399,0.45454546,19.483,19.462,274.34088096]
[1693696318600,15.4,19.484,19.462,274.34088096]
[1693696318797,0.45454546,19.483,19.462,274.34088096]
[1693696319000,15.4,19.484,19.462,274.34088096]
[1693696319196,0.45454546,19.483,19.462,274.34088096]
[1693696319502,15.4,19.484,19.462,274.34088096]
[1693696319702,0.45454546,19.483,19.462,274.34088096]
[1693696320000,15.4,19.484,19.462,274.34088096]
[1693696320303,0.45454546,19.483,19.462,274.34088096]
[1693696320502,15.4,19.484,19.462,274.34088096]
[1693696320800,0.45454546,19.483,19.462,274.34088096]
[1693696320999,15.4,19.484,19.462,274.34088096]
[1693696321200,0.45454546,19.483,19.462,274.34088096]
[1693696321401,15.4,19.484,19.462,274.34088096]
[1693696321602,0.45454546,19.483,19.462,274.34088096]
[1693696321802,15.4,19.484,19.462,274.34088096]
[1693696322103,0.45454546,19.483,19.462,274.34088096]
[1693696322300,15.4,19.484,19.462,274.34088096]
[1693696322501,0.45454546,19.483,19.462,274.34088096]
[1693696322798,15.4,19.484,19.462,274.34088096]
[1693696322999,15.85454546,19.495,19.463,6.96209666]
[1693696323199,15.4,19.493,19.464,154.12727272]
[1693696323405,0.45454546,19.493,19.467,0.15]
[1693696323606,15.4,19.495,19.468,153.9]
[1693696323805,15.4,19.493,19.47,154.05]
[1693696324104,0.45454546,19.493,19.472,0.15]
[1693696324301,15.4,19.495,19.472,0.15]
[1693696324502,15.4,19.493,19.472,0.15]
[1693696324697,0.45454546,19.493,19.472,0.15]
[1693696324903,15.4,19.495,19.472,0.15]
[1693696325105,15.4,19.493,19.472,0.15]
[1693696325304,0.45454546,19.493,19.472,0.15]
[1693696325497,15.4,19.495,19.472,0.15]
[1693696325702,15.4,19.493,19.472,0.15]
[1693696325902,0.45454546,19.493,19.472,0.15]
[1693696326202,15.4,19.495,19.464,153.9]
[1693696326402,15.4,19.493,19.467,0.15]
[1693696326597,0.45454546,19.493,19.468,153.9]
[1693696326807,15.4,19.495,19.47,154.05]
[1693696327008,15.4,19.493,19.472,0.15]
[1693696327302,15.4,19.495,19.472,0.15]
[1693696327504,15.4,19.493,19.472,0.15]
[1693696327706,15.4,19.495,19.472,0.15]
[1693696328006,15.4,19.493,19.472,0.15]
[1693696328301,0.45454546,19.493,19.47,154.05]
[1693696328608,15.4,19.495,19.47,179.58053]
[1693696328808,15.4,19.493,19.47,179.58053]
[1693696329002,15.4,19.495,19.47,179.58053]
[1693696329301,15.4,19.493,19.47,179.58053]
[1693696329503,15.4,19.495,19.47,179.58053]
[1693696329706,15.4,19.493,19.47,179.58053]
[1693696329907,15.4,19.495,19.47,179.58053]
[1693696330102,15.4,19.493,19.47,179.58053]
[1693696330404,15.4,19.495,19.47,179.58053]
[1693696330605,15.4,19.493,19.47,179.58053]
[1693696330806,15.4,19.495,19.47,179.58053]
[1693696331107,15.4,19.493,19.47,179.58053]
[1693696331308,0.45454546,19.493,19.47,179.58053]
[1693696331510,15.4,19.495,19.47,179.58053]
[1693696331710,15.4,19.493,19.47,179.58053]
[1693696331907,15.4,19.495,19.47,179.58053]
[1693696332112,15.4,19.493,19.47,179.58053]
[1693696332301,15.4,19.495,19.47,179.58053]
[1693696332602,15.4,19.493,19.47,179.58053]
[1693696332805,0.45454546,19.493,19.47,179.58053]
[1693696333006,15.4,19.495,19.47,179.58053]
[1693696333212,15.4,19.493,19.47,179.58053]
[1693696333407,15.4,19.495,19.47,179.58053]
[1693696333601,15.4,19.493,19.47,179.58053]
[1693696333801,15.4,19.495,19.47,179.58053]
[1693696334002,15.4,19.493,19.47,179.58053]
[1693696334210,15.4,19.495,19.47,179.58053]
[1693696334411,15.4,19.493,19.47,179.58053]
[1693696334610,15.4,19.495,19.47,179.58053]
[1693696334811,15.4,19.493,19.47,179.58053]
[1693696335106,0.45454546,19.493,19.47,179.58053]
[1693696335306,97.88242756,19.5,19.482,0.15]
[1693696335307,15.4,19.495,19.482,0.15]
[1693696335513,15.4,19.493,19.482,0.15]
[1693696335806,15.4,19.495,19.482,0.15]
[1693696336001,15.4,19.493,19.482,0.15]
[1693696336203,15.4,19.495,19.482,0.15]
[1693696336513,15.4,19.493,19.482,0.15]
[1693696336713,15.4,19.495,19.482,0.15]
[1693696336911,15.4,19.493,19.482,0.15]
[1693696337107,15.4,19.495,19.47,179.58053]
[1693696337310,15.4,19.493,19.47,179.58053]
[1693696337508,15.4,19.495,19.47,179.58053]
[1693696337708,15.4,19.493,19.47,179.58053]
[1693696337909,0.45454546,19.493,19.47,179.58053]
[1693696338209,15.4,19.495,19.47,179.58053]
[1693696338410,15.4,19.493,19.47,179.58053]
[1693696338612,0.45454546,19.493,19.47,179.58053]
[1693696338912,15.4,19.495,19.47,179.58053]
[1693696339115,15.4,19.493,19.47,179.58053]
[1693696339308,0.45454546,19.493,19.47,179.58053]
[1693696339516,15.4,19.495,19.47,179.58053]
[1693696339712,15.4,19.493,19.47,179.58053]
[1693696339916,0.45454546,19.493,19.482,0.15]
[1693696340215,15.4,19.495,19.483,0.15]
[1693696340416,15.4,19.493,19.47,179.58053]
[1693696340616,0.45454546,19.493,19.485,0.15]
[1693696340918,15.4,19.495,19.47,179.58053]
[1693696341113,15.4,19.493,19.472,154.05]
[1693696341317,0.45454546,19.493,19.472,198.20366486]
[1693696341518,15.4,19.495,19.472,198.20366486]
[1693696341719,15.4,19.493,19.472,198.20366486]
[1693696341919,15.4,19.495,19.472,198.05366486]
[1693696342218,15.4,19.493,19.472,198.05366486]
[1693696342419,15.4,19.495,19.473,179.57657]
[1693696342618,15.4,19.493,19.473,179.57657]
[1693696342818,15.4,19.495,19.473,179.57657]
[1693696343019,15.4,19.493,19.473,179.57657]
[1693696343221,15.4,19.495,19.473,179.57657]
[1693696343422,15.4,19.493,19.473,179.57657]
[1693696343622,15.4,19.495,19.473,179.57657]
[1693696343820,15.4,19.493,19.473,179.57657]
[1693696344020,15.4,19.495,19.473,179.57657]
[1693696344220,15.4,19.493,19.473,179.57657]
[1693696344525,0.45454546,19.493,19.473,179.57657]
[1693696344723,15.4,19.495,19.473,179.57657]
[1693696344924,15.4,19.493,19.473,179.57657]
[1693696345124,15.4,19.495,19.473,179.57657]
[1693696345420,15.4,19.493,19.473,179.57657]
[1693696345621,15.4,19.495,19.473,179.57657]
[1693696345820,15.4,19.493,19.473,179.57657]
[1693696346021,15.4,19.495,19.473,179.57657]
[1693696346220,15.4,19.493,19.473,179.57657]
[1693696346417,0.45454546,19.493,19.473,179.57657]
[1693696346622,15.4,19.495,19.473,179.57657]
[1693696346825,15.4,19.493,19.473,179.57657]
[1693696347021,15.4,19.495,19.473,179.57657]
[1693696347326,15.4,19.493,19.473,179.57657]
[1693696347527,15.4,19.495,19.473,179.57657]
[1693696347722,15.4,19.493,19.473,179.57657]
[1693696347924,15.4,19.495,19.473,179.57657]
[1693696348120,15.4,19.493,19.473,179.57657]
[1693696348324,15.4,19.495,19.473,179.57657]
[1693696348524,15.4,19.493,19.473,179.57657]
[1693696348727,15.4,19.495,19.473,179.57657]
[1693696348923,15.4,19.493,19.473,179.57657]
[1693696349124,15.4,19.495,19.473,179.57657]
[1693696349325,15.4,19.493,19.473,179.57657]
[1693696349525,15.4,19.495,19.473,179.57657]
[1693696349827,15.4,19.493,19.473,179.57657]
[1693696350029,0.45454546,19.493,19.473,179.57657]
[1693696350229,15.4,19.495,19.473,179.57657]
[1693696350532,15.4,19.493,19.473,179.57657]
[1693696350730,0.45454546,19.493,19.473,179.57657]
[1693696351034,15.4,19.495,19.473,179.57657]
[1693696351227,15.4,19.493,19.473,179.57657]
[1693696351423,15.4,19.495,19.473,179.57657]
[1693696351626,15.4,19.493,19.473,179.57657]
[1693696351829,0.45454546,19.493,19.473,179.57657]
[1693696352030,15.4,19.495,19.473,179.57657]
[1693696352231,15.4,19.493,19.473,179.57657]
[1693696352431,0.45454546,19.493,19.473,179.57657]
[1693696352630,15.39,19.495,19.473,179.57657]
[1693696352830,15.39,19.493,19.473,179.57657]
[1693696353025,0.45454546,19.493,19.473,179.57657]
[1693696353231,15.39,19.495,19.473,179.57657]
[1693696353431,15.39,19.493,19.473,179.57657]
[1693696353733,0.45454546,19.493,19.473,179.57657]
[1693696353933,15.39,19.495,19.473,179.57657]
[1693696354235,15.39,19.493,19.484,0.14]
[1693696354427,0.45454546,19.493,19.484,0.14]
[1693696354633,15.39,19.495,19.486,0.14]
[1693696354836,15.39,19.493,19.486,0.14]
[1693696355035,0.45454546,19.493,19.486,0.14]
[1693696355233,15.39,19.495,19.475,0.14]
[1693696355434,15.39,19.493,19.475,0.14]
[1693696355626,15.39,19.495,19.475,0.14]
[1693696355827,15.39,19.493,19.475,25.81394]
[1693696356033,15.39,19.495,19.475,25.81394]
[1693696356229,15.39,19.493,19.475,25.81394]
[1693696356435,0.45454546,19.493,19.486,0.14]
[1693696356634,30.17565123,19.497,19.486,0.14]
[1693696356635,15.39,19.495,19.486,0.14]
[1693696356835,15.39,19.493,19.486,0.14]
[1693696357036,0.45454546,19.493,19.486,0.14]
[1693696357238,15.39,19.495,19.486,0.14]
[1693696357438,15.39,19.493,19.486,0.14]
[1693696357639,37.1872,19.495,19.486,0.14]
[1693696357839,15.39,19.493,19.486,0.14]
[1693696359541,15.39,19.493,19.485,0.14]
[1693696359739,15.39,19.493,19.475,25.67394]
[1693696359940,15.39,19.493,19.485,0.14]
[1693696360441,15.39,19.493,19.475,25.67394]
[1693696361140,15.39,19.493,19.485,0.14]
[1693696362645,21.7972,19.495,19.475,25.67394]
[1693696363144,21.7972,19.495,19.485,0.14]
[1693696363443,21.7972,19.495,19.475,25.67394]
[1693696373447,21.7972,19.495,19.472,44.15366486]
[1693696374953,21.7972,19.495,19.472,198.05366486]
[1693696377552,21.7972,19.495,19.473,25.67657]
[1693696385764,21.7972,19.495,19.477,0.06203855]
[1693696391466,15.4,19.493,19.477,0.06203855]
[1693696396366,15.4,19.493,19.472,44.15366486]
[1693696400768,15.4,19.493,19.477,0.06203855]
[1693696415477,37.1972,19.495,19.477,0.06203855]
[1693696417076,15.4,19.493,19.477,0.06203855]
[1693696421880,37.1972,19.495,19.477,0.06203855]
[1693696429586,37.1972,19.495,19.477,281.51760337]
[1693696430886,37.1972,19.495,19.477,25.73333855]
[1693696431091,21.7972,19.495,19.477,25.73333855]
[1693696431293,21.7972,19.495,19.477,281.27398978]
[1693696431490,0.45454546,19.504,19.477,281.27398978]
[1693696431690,9.88165888,19.504,19.477,281.27398978]
[1693696431885,0.45454546,19.503,19.477,281.27398978]
[1693696432291,0.45454546,19.503,19.477,25.73333855]
[1693696432687,0.45454546,19.503,19.477,281.27073338]
[1693696433696,0.45454546,19.503,19.477,25.73333855]
[1693696434196,0.45454546,19.503,19.477,281.2741525]
[1693696434395,0.45454546,19.503,19.477,435.1741525]
[1693696434587,0.45454546,19.503,19.477,179.63333855]
[1693696435191,0.45454546,19.503,19.478,25.66998]
[1693696482843,0.45454546,19.503,19.478,281.20324531]
[1693696494446,9.88069821,19.504,19.478,281.20324531]
[1693696494747,0.45454546,19.503,19.478,281.20324531]
[1693696494947,0.45454546,19.504,19.478,281.20324531]
[1693696496043,9.88069429,19.504,19.478,281.20324531]
[1693696496247,0.45454546,19.503,19.478,281.20324531]
[1693696498351,0.45454546,19.504,19.478,281.20324531]
[1693696498949,9.8807015,19.504,19.478,281.20324531]
[1693696499150,0.45454546,19.503,19.478,281.20324531]
[1693696503049,0.45454546,19.504,19.478,281.20324531]
[1693696503953,0.45454546,19.504,19.489,0.14]
[1693696504250,0.45454546,19.504,19.478,281.20324531]
[1693696504452,0.45454546,19.504,19.478,435.10324531]
[1693696504752,0.45454546,19.504,19.479,255.53326531]
[1693696504953,0.45454546,19.504,19.479,322.50542061]
[1693696505650,0.45454546,19.504,19.48,281.20061531]
[1693696506955,0.45454546,19.504,19.48,409.43326531]
[1693696507149,0.45454546,19.504,19.482,0.14]
[1693696511858,0.45454546,19.504,19.482,154.04]
[1693696512163,0.45454546,19.504,19.484,153.9]
[1693696512460,0.45454546,19.504,19.485,281.19402531]
[1693696513261,0.45454546,19.504,19.486,255.53326531]
[1693696513462,0.45454546,19.504,19.485,25.66076]
[1693696513661,0.45454546,19.504,19.485,280.74656223]
[1693696513856,0.45454546,19.504,19.485,25.66076]
[1693696517052,0.45454546,19.504,19.479,41.3034953]
[1693696517253,0.45454546,19.504,19.479,66.9721553]
[1693696519163,0.45454546,19.504,19.479,41.3034953]
[1693696542382,0.45454546,19.504,19.437,115.96604017]
[1693696542383,500.0,19.497,19.459,189.8952015]
[1693696542585,500.0,19.488,19.452,153.9]
[1693696542788,500.0,19.488,19.449,237.74625409]
[1693696542789,15.39,19.486,19.453,262.85162668]
[1693696542994,15.39,19.484,19.454,256.10883681]
[1693696543194,9.87992608,19.483,19.455,256.10883681]
[1693696543394,15.39,19.481,19.446,282.5125457]
[1693696543688,0.45454546,19.48,19.447,351.40331969]
[1693696543895,0.45454546,19.479,19.449,154.04]
[1693696544094,15.39,19.477,19.45,351.40331969]
[1693696544294,0.45454546,19.476,19.451,197.50331969]
[1693696544490,9.89180192,19.483,19.452,32.4476837]
[1693696544691,15.39,19.481,19.453,6.7433937]
[1693696544993,0.45454546,19.48,19.452,25.70429]
[1693696545191,0.45454546,19.479,19.453,6.7434619]
[1693696545490,15.39,19.477,19.453,6.7434619]
[1693696545694,15.39,19.477,19.452,25.70429]
[1693696545695,0.45454546,19.476,19.452,25.70429]
[1693696545895,15.39,19.484,19.452,25.70429]
[1693696545896,9.89176295,19.483,19.452,25.70429]
[1693696546094,15.39,19.481,19.452,25.70429]
[1693696546291,0.45454546,19.48,19.452,25.70429]
[1693696546494,0.45454546,19.479,19.452,25.70429]
[1693696546797,15.39,19.477,19.452,25.70429]
[1693696546983,0.45454546,19.476,19.452,25.70429]
[1693696547187,9.43738238,19.483,19.452,25.70429]
[1693696547385,15.39,19.481,19.452,25.70429]
[1693696547586,9.89192784,19.48,19.452,25.70429]
[1693696547785,9.89192784,19.479,19.452,25.70429]
[1693696547985,15.39,19.477,19.452,25.70429]
[1693696548191,0.45454546,19.476,19.452,25.70429]
[1693696548387,9.43731403,19.483,19.452,25.70429]
[1693696548596,15.39,19.481,19.452,25.70429]
[1693696548895,9.89185949,19.48,19.452,25.70429]
[1693696549095,9.89185949,19.479,19.452,25.70429]
[1693696549296,15.39,19.477,19.452,25.70429]
[1693696549497,0.45454546,19.476,19.452,25.70429]
[1693696549795,15.39,19.474,19.453,25.70297]
[1693696549990,15.39,19.472,19.453,25.70297]
[1693696550189,0.45454546,19.472,19.453,25.70297]
[1693696550393,9.89171683,19.483,19.453,25.70297]
[1693696550593,15.39,19.481,19.453,25.70297]
[1693696550795,9.89171683,19.48,19.453,25.70297]
[1693696550989,9.89171683,19.479,19.453,25.70297]
[1693696551193,15.39,19.477,19.453,25.70297]
[1693696551393,0.45454546,19.476,19.453,25.70297]
[1693696551597,15.39,19.474,19.453,25.70297]
[1693696551798,15.39,19.472,19.453,25.70297]
[1693696551995,15.84454546,19.484,19.477,0.06203826]
[1693696552298,9.89164326,19.483,19.477,0.06203826]